{"text_format":"3","workbook":"xlsx","n_sheets":4,"sheets":["البدء","المصروفات","الدخل","ملخص الأرباح - الخسائر"],"not_rendered":{"charts":1},"read":"whole","date_system":"1900"}

{"sheet":"البدء","index":0,"n_rows":8,"n_cols":2,"rows_kept":8}
[null,"حول هذا القالب"]
[null,"استخدم مصنف ميزانية الحدث هذا لتعقب المصاريف المتكبدة والدخل المكتسب من حدث ما."]
[null,"املأ اسم الحدث وأدخل التفاصيل في الجداول في ورقة عمل المصروفات وورقة عمل الدخل."]
[null,"يتم حساب إجمالي المصاريف وإجمالي الدخل تلقائياً."]
[null,"يتم تحديث ملخص الأرباح والخسائر والمخطط البياني تلقائياً في ورقة العمل ملخص الأرباح والخسائر."]
[null,"ملاحظة: "]
[null,"تم توفير إرشادات إضافية في العمود A في كل ورقة عمل. تم إخفاء هذا النص عن قصد. لإزالة النص، حدد العمود A، ثم حدد \"حذف\". لإظهار النص، حدد العمود A، ثم قم بتغيير لون الخط."]
[null,"للتعرف على المزيد حول الجداول، اضغط على SHIFT ثم F10 داخل جدول، وحدد خيار \"جدول\"، ثم حدد \"النص البديل\"."]

{"sheet":"المصروفات","index":1,"n_rows":32,"n_cols":8,"rows_kept":32,"merged":[[0,1,0,4],[2,1,3,1]]}
["أدخل المصاريف المقدّرة والفعلية لكل فئة في الجداول المطابقة في ورقة العمل هذه، واسم الحدث في الخلية D1 لتخصيص عنوان هذه الورقة وأوراق العمل الأخرى. يوجد العنوان الفرعي لورقة العمل هذه في الخلية H1. توجد تعليمات مفيدة حول كيفية استخدام ورقة العمل هذه في الخلايا الموجودة في هذا العمود. توجد الإرشادات التالية في الخلية A3.","ميزانية الحدث لاسم الحدث",{"$nulls":5},"المصاريف"]
[]
["توجد تسمية إجمالي المصاريف في الخلية على اليسار، وتسمية المصاريف المُقدّرة في الخلية G3 والمصاريف الفعلية في H3.","إجمالي المصاريف",{"$nulls":4},"المقدرة","الفعلية"]
["يتم حساب إجمالي المصاريف المُقدّرة في الخلية G4 وإجمالي المصاريف الفعلية في H4 تلقائياً. توجد الإرشادات التالية في الخلية A6.",{"$nulls":5},{"$f":"SUM(C11,C19,C25,C32,G11,G19,G24)","v":{"v":882,"d":"ر.س.‏ 882.00"}},{"$f":"SUM(D11,D19,D25,D32,H11,H19,H24)","v":{"v":333,"d":"ر.س.‏ 333.00"}}]
[]
["أدخل مصاريف الموقع في جدول يبدأ من الخلية على اليسار ومصاريف المشروبات الطازجة في جدول يبدأ في الخلية F6. توجد الإرشادات التالية في الخلية A13.","الموقع","المقدرة","الفعلية",null,"المشروبات الطازجة","المقدرة","الفعلية"]
[null,"رسوم القاعة والغرفة",{"v":500,"d":"ر.س.‏ 500.00"},null,null,"الطعام"]
[null,"فريق عمل الموقع",{"$nulls":3},"المشروبات",{"v":20,"d":"ر.س.‏ 20.00"}]
[null,"المعدات",{"$nulls":3},"المفارش",null,{"v":20,"d":"ر.س.‏ 20.00"}]
[null,"الطاولات والكراسي",{"$nulls":3},"فريق العمل والإكراميات"]
[null,"الإجمالي",{"$f":"SUBTOTAL(109,مصاريف_الموقع[المقدرة])","v":{"v":500,"d":"ر.س.‏ 500.00"}},{"$f":"SUBTOTAL(109,مصاريف_الموقع[الفعلية])","v":{"v":0,"d":"ر.س.‏ 0.00"}},null,"الإجمالي",{"$f":"SUBTOTAL(109,مصاريف_المشروبات_الطازجة[المقدرة])","v":{"v":20,"d":"ر.س.‏ 20.00"}},{"$f":"SUBTOTAL(109,مصاريف_المشروبات_الطازجة[الفعلية])","v":{"v":20,"d":"ر.س.‏ 20.00"}}]
[]
["أدخل مصاريف الديكورات في جدول يبدأ من الخلية على اليسار ومصاريف البرنامج في جدول يبدأ في الخلية F13. توجد الإرشادات التالية في الخلية A21.","الديكورات","المقدرة","الفعلية",null,"البرنامج","المقدرة","الفعلية"]
[null,"الزهور",{"v":200,"d":"ر.س.‏ 200.00"},{"v":300,"d":"ر.س.‏ 300.00"},null,"المؤدّون"]
[null,"الشموع",{"$nulls":3},"المتحدثون",{"v":30,"d":"ر.س.‏ 30.00"}]
[null,"الإضاءة",{"$nulls":3},"السفر"]
[null,"البالونات",{"$nulls":3},"الفندق"]
[null,"اللوازم من الورق",{"$nulls":3},"غير ذلك"]
[null,"الإجمالي",{"$f":"SUBTOTAL(109,مصاريف_الديكورات[المقدرة])","v":{"v":200,"d":"ر.س.‏ 200.00"}},{"$f":"SUBTOTAL(109,مصاريف_الديكورات[الفعلية])","v":{"v":300,"d":"ر.س.‏ 300.00"}},null,"الإجمالي",{"$f":"SUBTOTAL(109,مصاريف_البرنامج[المقدرة])","v":{"v":30,"d":"ر.س.‏ 30.00"}},{"$f":"SUBTOTAL(109,مصاريف_البرنامج[الفعلية])","v":{"v":0,"d":"ر.س.‏ 0.00"}}]
[]
["أدخل مصاريف الدعاية في جدول يبدأ من الخلية على اليمين ومصاريف الجوائز في جدول يبدأ من الخلية F21. توجد الإرشادات التالية في الخلية A27","الدعاية","المقدرة","الفعلية",null,"الجوائز","المقدرة","الفعلية"]
[null,"إعداد الرسومات البيانية",{"$nulls":3},"الشرائط/اللوحات التذكارية/الجوائز"]
[null,"النسخ الضوئي/الطباعة",{"v":20,"d":"ر.س.‏ 20.00"},null,null,"الهدايا",{"v":100,"d":"ر.س.‏ 100.00"}]
[null,"رسوم البريد",{"$nulls":3},"الإجمالي",{"$f":"SUBTOTAL(109,مصاريف_الجوائز[المقدرة])","v":{"v":100,"d":"ر.س.‏ 100.00"}},{"$f":"SUBTOTAL(109,مصاريف_الجوائز[الفعلية])","v":{"v":0,"d":"ر.س.‏ 0.00"}}]
[null,"الإجمالي",{"$f":"SUBTOTAL(109,مصاريف_الدعاية[المقدرة])","v":{"v":20,"d":"ر.س.‏ 20.00"}},{"$f":"SUBTOTAL(109,مصاريف_الدعاية[الفعلية])","v":{"v":0,"d":"ر.س.‏ 0.00"}}]
[]
["أدخل المصاريف المتنوعة في جدول يبدأ من الخلية على اليسار.","متنوعة","المقدرة","الفعلية"]
[null,"الهاتف",null,{"v":13,"d":"ر.س.‏ 13.00"}]
[null,"وسائل النقل",{"v":12,"d":"ر.س.‏ 12.00"}]
[null,"اللوازم من الأدوات المكتبية"]
[null,"خدمات الفاكس"]
[null,"الإجمالي",{"$f":"SUBTOTAL(109,المصاريف_المتنوعة[المقدرة])","v":{"v":12,"d":"ر.س.‏ 12.00"}},{"$f":"SUBTOTAL(109,المصاريف_المتنوعة[الفعلية])","v":{"v":13,"d":"ر.س.‏ 13.00"}}]

{"sheet":"الدخل","index":2,"n_rows":29,"n_cols":7,"rows_kept":29,"merged":[[0,1,0,3],[2,1,3,1]]}
["أدخل المدخولات المُقدرة والفعلية من كل فئة في الجداول المطابقة في ورقة العمل هذه. يتم تحديث عنوان ورقة العمل هذه تلقائياً في الخلايا على اليسار. يوجد العنوان الفرعي في الخلية G1. توجد تعليمات مفيدة حول كيفية استخدام ورقة العمل هذه في الخلايا الموجودة في هذا العمود. توجد الإرشادات التالية في الخلية A3.",{"$f":"المصروفات!B1","v":"ميزانية الحدث لاسم الحدث"},{"$nulls":4},"الدخل"]
[]
["توجد تسمية إجمالي الدخل في الخلية على اليسار، وتسمية الدخل المُقدّر في الخلية F3، والدخل الفعلي في G3.","إجمالي الدخل",{"$nulls":3},"المقدرة","الفعلية"]
["يتم احتساب إجمالي الدخل المُقدّر تلقائياً في الخلية F4 وإجمالي الدخل الفعلي في G4.",{"$nulls":4},{"$f":"SUM(عمليات_الدخول[[#Totals],[الدخل المُقدّر]],الإعلانات_في_البرنامج[[#Totals],[الدخل المُقدّر]],العارضين_أو_الموردّون[[#Totals],[الدخل المُقدّر]],بيع_العناصر[[#Totals],[الدخل المُقدّر]])","v":{"v":1936,"d":"ر.س.‏ 1,936.00"}},{"$f":"SUM(عمليات_الدخول[[#Totals],[الدخل الفعلي]],الإعلانات_في_البرنامج[[#Totals],[الدخل الفعلي]],العارضين_أو_الموردّون[[#Totals],[الدخل الفعلي]],بيع_العناصر[[#Totals],[الدخل الفعلي]])","v":{"v":1831,"d":"ر.س.‏ 1,831.00"}}]
["توجد تسمية عمليات الدخول في الخلية على اليسار.","عمليات الدخول"]
["أدخل العدد المُقدر والفعلي لعمليات الدخول مع أسعار التذاكر في جدول يبدأ من الخلية على اليسار. يتم حساب الدخل المُقدر والفعلي من عمليات الدخول تلقائياً. توجد الإرشادات التالية في الخلية A11.","العدد المُقدّر","العدد الفعلي","النوع","السعر","الدخل المُقدّر","الدخل الفعلي"]
[null,300,278,"البالغون @",{"v":5,"d":"ر.س.‏ 5.00"},{"$f":"B7*E7","v":{"v":1500,"d":"ر.س.‏ 1,500.00"}},{"$f":"C7*E7","v":{"v":1390,"d":"ر.س.‏ 1,390.00"}}]
[null,197,195,"الأطفال @",{"v":2,"d":"ر.س.‏ 2.00"},{"$f":"B8*E8","v":{"v":394,"d":"ر.س.‏ 394.00"}},{"$f":"C8*E8","v":{"v":390,"d":"ر.س.‏ 390.00"}}]
[null,42,51,"غير ذلك @",{"v":1,"d":"ر.س.‏ 1.00"},{"$f":"B9*E9","v":{"v":42,"d":"ر.س.‏ 42.00"}},{"$f":"C9*E9","v":{"v":51,"d":"ر.س.‏ 51.00"}}]
[null,"الإجمالي",{"$nulls":3},{"$f":"SUBTOTAL(109,عمليات_الدخول[الدخل المُقدّر])","v":{"v":1936,"d":"ر.س.‏ 1,936.00"}},{"$f":"SUBTOTAL(109,عمليات_الدخول[الدخل الفعلي])","v":{"v":1831,"d":"ر.س.‏ 1,831.00"}}]
["توجد الإعلانات في تسمية البرنامج في الخلية على اليسار.","الإعلانات في البرنامج"]
["أدخل العدد المقدَّر والعدد الفعلي للإعلانات في البرنامج وأسعار الإعلانات في جدول يبدأ من الخلية على اليسار. يتم حساب الدخل المُقدّر والفعلي من الإعلانات تلقائياً. توجد الإرشادات التالية في الخلية A17.","العدد المُقدّر","العدد الفعلي","النوع","السعر","الدخل المُقدّر","الدخل الفعلي"]
[null,12,null,"الأغلفة @",null,{"$f":"B13*E13","v":{"v":0,"d":"ر.س.‏ 0.00"}},{"$f":"C13*E13","v":{"v":0,"d":"ر.س.‏ 0.00"}}]
[null,null,158,"نصف صفحات @",null,{"$f":"B14*E14","v":{"v":0,"d":"ر.س.‏ 0.00"}},{"$f":"C14*E14","v":{"v":0,"d":"ر.س.‏ 0.00"}}]
[null,4,null,"ربع صفحات @",null,{"$f":"B15*E15","v":{"v":0,"d":"ر.س.‏ 0.00"}},{"$f":"C15*E15","v":{"v":0,"d":"ر.س.‏ 0.00"}}]
[null,"الإجمالي",{"$nulls":3},{"$f":"SUBTOTAL(109,الإعلانات_في_البرنامج[الدخل المُقدّر])","v":{"v":0,"d":"ر.س.‏ 0.00"}},{"$f":"SUBTOTAL(109,الإعلانات_في_البرنامج[الدخل الفعلي])","v":{"v":0,"d":"ر.س.‏ 0.00"}}]
["توجد تسمية العارضين أو الموردّين في الخلية على اليسار.","العارضون/الموردّون"]
["أدخل العدد المُقدر والفعلي للعارضين والموردّين وأسعار الأكشاك في جدول يبدأ من الخلية على اليسار. يتم حساب الدخل المُقدّر والفعلي تلقائياً. توجد الإرشادات التالية في الخلية A23.","العدد المُقدّر","العدد الفعلي","النوع","السعر","الدخل المُقدّر","الدخل الفعلي"]
[null,23,null,"الأكشاك الكبيرة @",null,{"$f":"B19*E19","v":{"v":0,"d":"ر.س.‏ 0.00"}},{"$f":"C19*E19","v":{"v":0,"d":"ر.س.‏ 0.00"}}]
[null,354,null,"الأكشاك المتوسطة @",null,{"$f":"B20*E20","v":{"v":0,"d":"ر.س.‏ 0.00"}},{"$f":"C20*E20","v":{"v":0,"d":"ر.س.‏ 0.00"}}]
[null,56,null,"الأكشاك الصغيرة @",null,{"$f":"B21*E21","v":{"v":0,"d":"ر.س.‏ 0.00"}},{"$f":"C21*E21","v":{"v":0,"d":"ر.س.‏ 0.00"}}]
[null,"الإجمالي",{"$nulls":3},{"$f":"SUBTOTAL(109,العارضين_أو_الموردّون[الدخل المُقدّر])","v":{"v":0,"d":"ر.س.‏ 0.00"}},{"$f":"SUBTOTAL(109,العارضين_أو_الموردّون[الدخل الفعلي])","v":{"v":0,"d":"ر.س.‏ 0.00"}}]
["توجد تسمية بيع العناصر في الخلية على اليسار.","بيع العناصر"]
["أدخل العدد المُقدر والفعلي للسلع المُباعة وأسعار العناصر في جدول يبدأ من الخلية على اليسار. يتم حساب الدخل المُقدّر والفعلي تلقائياً.","العدد المُقدّر","العدد الفعلي","النوع","السعر","الدخل المُقدّر","الدخل الفعلي"]
[{"$nulls":3},"العناصر @",null,{"$f":"B25*E25","v":{"v":0,"d":"ر.س.‏ 0.00"}},{"$f":"C25*E25","v":{"v":0,"d":"ر.س.‏ 0.00"}}]
[null,123,null,"العناصر @",null,{"$f":"B26*E26","v":{"v":0,"d":"ر.س.‏ 0.00"}},{"$f":"C26*E26","v":{"v":0,"d":"ر.س.‏ 0.00"}}]
[{"$nulls":3},"العناصر @",null,{"$f":"B27*E27","v":{"v":0,"d":"ر.س.‏ 0.00"}},{"$f":"C27*E27","v":{"v":0,"d":"ر.س.‏ 0.00"}}]
[null,13,null,"العناصر @",null,{"$f":"B28*E28","v":{"v":0,"d":"ر.س.‏ 0.00"}},{"$f":"C28*E28","v":{"v":0,"d":"ر.س.‏ 0.00"}}]
[null,"الإجمالي",{"$nulls":3},{"$f":"SUBTOTAL(109,بيع_العناصر[الدخل المُقدّر])","v":{"v":0,"d":"ر.س.‏ 0.00"}},{"$f":"SUBTOTAL(109,بيع_العناصر[الدخل الفعلي])","v":{"v":0,"d":"ر.س.‏ 0.00"}}]

{"sheet":"ملخص الأرباح - الخسائر","index":3,"n_rows":8,"n_cols":7,"rows_kept":8,"merged":[[0,1,0,3],[2,4,11,6]]}
["يتم تحديث ملخص الأرباح والخسائر والمخطط البياني الذي يعرض إجمالي الدخل والمصاريف تلقائيًا في ورقة العمل هذه. يتم تحديث عنوان ورقة العمل هذه تلقائياً في الخلايا على اليسار. يوجد العنوان الفرعي في الخلية G1 وG2. توجد تعليمات مفيدة حول كيفية استخدام ورقة العمل هذه في الخلايا الموجودة في هذا العمود. توجد الإرشادات التالية في الخلية A3.",{"$f":"المصروفات!B1","v":"ميزانية الحدث لاسم الحدث"},{"$nulls":4},"الربح "]
[{"$nulls":6},"ملخص الخسائر"]
["يوجد المخطط الشريطي الذي يقارن بين الدخل والمصاريف المُقدّرة والدخل الفعلي والنفقات الفعلية في الخلية E3.",{"$nulls":3},"يوجد المخطط الشريطي الذي يعرض الدخل والمصاريف المُقدّرة والدخل والمصاريف الفعلية في هذه الخلية."]
["يتم تحديث جدول الملخص الذي يبدأ في الخلية على اليسار تلقائياً. توجد الإرشادات التالية في الخلية A8."," الإجمالي","المقدرة","الفعلية"]
[null,"إجمالي الدخل",{"$f":"الدخل!F4","v":{"v":1936,"d":"ر.س.‏ 1,936.00"}},{"$f":"الدخل!G4","v":{"v":1831,"d":"ر.س.‏ 1,831.00"}}]
[null,"إجمالي المصاريف",{"$f":"المصروفات!G4","v":{"v":882,"d":"ر.س.‏ 882.00"}},{"$f":"المصروفات!H4","v":{"v":333,"d":"ر.س.‏ 333.00"}}]
[]
["يتم حساب إجمالي الأرباح أو الخسائر المقدرة تلقائياً في الخلية C8 وإجمالي الأرباح أو الخسائر الفعلية في الخلية D8.","إجمالي الأرباح (أو الخسائر)",{"$f":"C5-C6","v":{"v":1054,"d":"ر.س.‏ 1,054.00"}},{"$f":"D5-D6","v":{"v":1498,"d":"ر.س.‏ 1,498.00"}}]